[Event "6e festival d'échecs d'Allauch"]
[Site "Allauch, France"]
[Date "2024.08.27"]
[Round "2.3"]
[White "Philippe, Guillaume"]
[Black "Dartige, Thomas"]
[Result "1/2-1/2"]
[TimeControl "1 h 30 min (+30s/coup)"]
[WhiteElo "2356"]
[BlackElo "1864"]

1. e4 {[%clk 01:30:54]} {[%emt 00:00:04]} Nf6 {[%clk 01:30:32]} {[%emt
00:00:29]} 2. e5 {[%clk 01:31:07]} {[%emt 00:00:18]} Nd5 {[%clk 01:30:55]}
{[%emt 00:00:07]} 3. d4 {[%clk 01:31:32]} {[%emt 00:00:05]} d6 {[%clk
01:31:18]} {[%emt 00:00:07]} 4. c4 {[%clk 01:31:56]} {[%emt 00:00:07]} Nb6
{[%clk 01:31:43]} {[%emt 00:00:03]} 5. f4 {[%clk 01:32:21]} {[%emt 00:00:05]}
dxe5 {[%clk 01:30:47]} {[%emt 00:01:27]} 6. fxe5 {[%clk 01:32:38]} {[%emt
00:00:14]} Nc6 {[%clk 01:31:07]} {[%emt 00:00:09]} 7. Be3 {[%clk 01:32:54]}
{[%emt 00:00:13]} Bf5 {[%clk 01:31:28]} {[%emt 00:00:09]} 8. Nc3 {[%clk
01:32:53]} {[%emt 00:00:32]} e6 {[%clk 01:31:51]} {[%emt 00:00:07]} 9. Nf3
{[%clk 01:33:11]} {[%emt 00:00:12]} Be7 {[%clk 01:32:08]} {[%emt 00:00:13]} 10.
Be2 {[%clk 01:32:55]} {[%emt 00:00:45]} O-O {[%clk 01:32:28]} {[%emt 00:00:10]}
11. O-O {[%clk 01:33:17]} {[%emt 00:00:08]} f6 {[%clk 01:32:25]} {[%emt
00:00:34]} 12. exf6 {[%clk 01:33:01]} {[%emt 00:00:45]} Bxf6 {[%clk 01:32:49]}
{[%emt 00:00:06]} 13. Qd2 {[%clk 01:30:32]} {[%emt 00:02:59]} h6 {[%clk
01:18:33]} {[%emt 00:14:46]} 14. Rad1 {[%clk 01:27:45]} {[%emt 00:03:16]} Qe8
{[%clk 01:16:23]} {[%emt 00:02:40]} 15. h3 {[%clk 01:21:21]} {[%emt 00:06:54]}
Rd8 {[%clk 01:12:41]} {[%emt 00:04:12]} 16. Qe1 {[%clk 01:20:55]} {[%emt
00:00:56]} Rf7 {[%clk 01:03:07]} {[%emt 00:10:04]} 17. Rd2 {[%clk 01:12:57]}
{[%emt 00:08:27]} Rfd7 {[%clk 00:49:44]} {[%emt 00:13:54]} 18. Qf2 {[%clk
01:12:48]} {[%emt 00:00:39]} Na5 {[%clk 00:37:27]} {[%emt 00:12:48]} 19. b3
{[%clk 01:11:54]} {[%emt 00:01:23]} c5 {[%clk 00:30:17]} {[%emt 00:07:41]} 20.
Nb5 {[%clk 01:09:11]} {[%emt 00:03:12]} a6 {[%clk 00:19:31]} {[%emt 00:11:17]}
21. dxc5 {[%clk 01:08:48]} {[%emt 00:00:53]} axb5 {[%clk 00:18:38]} {[%emt
00:01:23]} 22. cxb6 {[%clk 01:09:02]} {[%emt 00:00:16]} bxc4 {[%clk 00:18:40]}
{[%emt 00:00:28]} 23. bxc4 {[%clk 01:07:32]} {[%emt 00:01:59]} Rxd2 {[%clk
00:16:22]} {[%emt 00:02:49]} 24. Nxd2 {[%clk 01:07:53]} {[%emt 00:00:08]} Qa4
{[%clk 00:14:50]} {[%emt 00:02:02]} 25. c5 {[%clk 01:08:14]} {[%emt 00:00:06]}
Qxa2 {[%clk 00:13:24]} {[%emt 00:01:59]} 26. Bf3 {[%clk 01:06:18]} {[%emt
00:02:26]} Qc2 {[%clk 00:09:52]} {[%emt 00:04:03]} 27. Bd1 {[%clk 00:42:21]}
{[%emt 00:24:26]} Qc3 {[%clk 00:08:17]} {[%emt 00:02:05]} 28. Nf3 {[%clk
00:37:21]} {[%emt 00:05:29]} Rd5 {[%clk 00:03:11]} {[%emt 00:05:36]} 29. Be2
{[%clk 00:36:32]} {[%emt 00:01:19]} Nb3 {[%clk 00:02:07]} {[%emt 00:01:34]} 30.
Kh2 {[%clk 00:35:12]} {[%emt 00:01:50]} Qb4 {[%clk 00:00:54]} {[%emt 00:01:44]}
31. Rd1 {[%clk 00:33:46]} {[%emt 00:01:56]} Rxd1 {[%clk 00:00:57]} {[%emt
00:00:27]} 32. Bxd1 {[%clk 00:34:12]} {[%emt 00:00:03]} Be4 {[%clk 00:01:00]}
{[%emt 00:00:27]} 33. Bxb3 {[%clk 00:33:36]} {[%emt 00:01:06]} Qxb3 {[%clk
00:01:26]} {[%emt 00:00:04]} 34. Bd4 {[%clk 00:33:47]} {[%emt 00:00:19]} Bxf3
{[%clk 00:00:43]} {[%emt 00:01:13]} 35. Bxf6 {[%clk 00:34:11]} {[%emt
00:00:05]} Bd5 {[%clk 00:00:45]} {[%emt 00:00:28]} 36. Be5 {[%clk 00:34:14]}
{[%emt 00:00:22]} Qd3 {[%clk 00:00:46]} {[%emt 00:00:34]} 37. Qg3 {[%clk
00:31:26]} {[%emt 00:03:17]} 1/2-1/2

[Event "6e festival d'échecs d'Allauch"]
[Site "Allauch, France"]
[Date "2024.08.27"]
[Round "2.4"]
[White "Mottet, Louis"]
[Black "Petrosyan, Armen"]
[Result "0-1"]
[TimeControl "1 h 30 min (+30s/coup)"]
[WhiteElo "1889"]
[BlackElo "2344"]

1. e4 {[%clk 01:30:58]} {[%emt 00:51:27]} e5 {[%clk 01:30:35]} {[%emt
00:00:26]} 2. Nf3 {[%clk 01:31:22]} {[%emt 00:00:06]} Nc6 {[%clk 01:31:00]}
{[%emt 00:00:06]} 3. Bb5 {[%clk 01:31:48]} {[%emt 00:00:03]} a6 {[%clk
01:31:12]} {[%emt 00:00:19]} 4. Ba4 {[%clk 01:32:13]} {[%emt 00:00:03]} Nf6
{[%clk 01:31:35]} {[%emt 00:00:07]} 5. O-O {[%clk 01:32:00]} {[%emt 00:00:43]}
Be7 {[%clk 01:31:53]} {[%emt 00:00:12]} 6. Re1 {[%clk 01:31:28]} {[%emt
00:01:02]} b5 {[%clk 01:32:12]} {[%emt 00:00:11]} 7. Bb3 {[%clk 01:31:52]}
{[%emt 00:00:06]} O-O {[%clk 01:32:33]} {[%emt 00:00:10]} 8. d3 {[%clk
01:30:40]} {[%emt 00:01:43]} d6 {[%clk 01:32:36]} {[%emt 00:00:26]} 9. a4
{[%clk 01:30:27]} {[%emt 00:00:43]} b4 {[%clk 01:30:10]} {[%emt 00:02:56]} 10.
h3 {[%clk 01:24:33]} {[%emt 00:06:24]} Na5 {[%clk 01:23:52]} {[%emt 00:06:48]}
11. Ba2 {[%clk 01:23:46]} {[%emt 00:01:18]} b3 {[%clk 01:23:48]} {[%emt
00:00:34]} 12. Bxb3 {[%clk 01:15:57]} {[%emt 00:08:18]} Nxb3 {[%clk 01:21:34]}
{[%emt 00:02:45]} 13. cxb3 {[%clk 01:16:14]} {[%emt 00:00:12]} c5 {[%clk
01:21:55]} {[%emt 00:00:09]} 14. a5 {[%clk 01:15:14]} {[%emt 00:01:30]} Rb8
{[%clk 01:18:55]} {[%emt 00:03:30]} 15. Nc3 {[%clk 01:08:17]} {[%emt 00:07:28]}
Be6 {[%clk 01:17:44]} {[%emt 00:01:40]} 16. Nd2 {[%clk 01:07:27]} {[%emt
00:01:20]} Ne8 {[%clk 01:09:40]} {[%emt 00:08:34]} 17. g4 {[%clk 00:44:20]}
{[%emt 00:23:37]} Bg5 {[%clk 01:04:50]} {[%emt 00:05:21]} 18. Nc4 {[%clk
00:37:24]} {[%emt 00:07:26]} Bxc1 {[%clk 01:03:38]} {[%emt 00:01:42]} 19. Qxc1
{[%clk 00:37:48]} {[%emt 00:00:06]} Qh4 {[%clk 00:53:28]} {[%emt 00:10:40]} 20.
Kg2 {[%clk 00:34:18]} {[%emt 00:04:00]} h5 {[%clk 00:53:00]} {[%emt 00:00:57]}
21. f3 {[%clk 00:33:44]} {[%emt 00:01:03]} Rxb3 {[%clk 00:51:22]} {[%emt
00:02:09]} 22. Re2 {[%clk 00:31:19]} {[%emt 00:02:55]} Bxc4 {[%clk 00:41:49]}
{[%emt 00:10:03]} 23. dxc4 {[%clk 00:31:32]} {[%emt 00:00:17]} Nc7 {[%clk
00:42:10]} {[%emt 00:00:09]} 24. Qd1 {[%clk 00:21:24]} {[%emt 00:10:38]} Rxc3
{[%clk 00:21:07]} {[%emt 00:21:33]} 25. bxc3 {[%emt 00:00:41]} Ne6 {[%clk
00:21:32]} 26. Rd2 {[%clk 00:12:07]} {[%emt 00:09:41]} Nf4+ {[%clk 00:20:52]}
{[%emt 00:01:10]} 27. Kf1 {[%clk 00:11:56]} {[%emt 00:00:41]} Qxh3+ {[%clk
00:20:50]} {[%emt 00:00:32]} 28. Kf2 {[%clk 00:10:23]} {[%emt 00:02:03]} Qh4+
{[%clk 00:18:20]} {[%emt 00:03:00]} 29. Kf1 {[%clk 00:05:45]} {[%emt 00:05:07]}
hxg4 {[%clk 00:17:42]} {[%emt 00:01:09]} 30. fxg4 {[%clk 00:05:57]} {[%emt
00:00:18]} Qh1+ {[%clk 00:13:30]} {[%emt 00:04:41]} 31. Kf2 {[%clk 00:06:20]}
{[%emt 00:00:07]} Qxe4 {[%clk 00:13:51]} {[%emt 00:00:10]} 32. Qf3 {[%clk
00:05:08]} {[%emt 00:01:43]} Qxc4 {[%clk 00:13:34]} {[%emt 00:00:47]} 33. Rxd6
{[%clk 00:05:24]} {[%emt 00:00:14]} Ne6 {[%clk 00:11:54]} {[%emt 00:02:10]} 34.
Qd3 {[%clk 00:01:10]} {[%emt 00:04:42]} Qf4+ {[%clk 00:10:54]} {[%emt
00:01:31]} 35. Qf3 {[%clk 00:01:13]} {[%emt 00:00:27]} Qh2+ {[%clk 00:11:05]}
{[%emt 00:00:20]} 36. Qg2 {[%clk 00:01:31]} {[%emt 00:00:10]} Qh4+ {[%clk
00:09:16]} {[%emt 00:02:20]} 37. Qg3 {[%clk 00:01:52]} {[%emt 00:00:09]} Qg5
{[%clk 00:08:32]} {[%emt 00:01:13]} 38. Qe3 {[%clk 00:01:23]} {[%emt 00:00:59]}
Nf4 {[%emt 00:02:17]} 39. Rad1 {[%clk 00:00:40]} c4 {[%clk 00:07:37]} {[%emt
00:00:51]} 40. Qg3 {[%clk 00:00:34]} {[%emt 00:00:35]} f5 {[%clk 00:06:30]}
{[%emt 00:01:37]} 41. gxf5 {[%clk 00:00:45]} {[%emt 00:00:19]} Qxf5 {[%clk
00:06:52]} {[%emt 00:00:08]} 42. Ke1 {[%clk 00:00:44]} {[%emt 00:00:32]} Qe4+
{[%clk 00:05:51]} {[%emt 00:01:30]} 43. Kd2 {[%clk 00:01:06]} {[%emt 00:00:08]}
Rb8 {[%clk 00:05:37]} {[%emt 00:00:43]} 44. Rb6 {[%clk 00:01:26]} {[%emt
00:00:11]} Rd8+ {[%clk 00:06:01]} {[%emt 00:00:07]} 45. Kc1 {[%clk 00:01:37]}
{[%emt 00:00:18]} Ne2+ {[%clk 00:06:21]} 0-1

[Event "6e festival d'échecs d'Allauch"]
[Site "Allauch, France"]
[Date "2024.08.27"]
[Round "2.5"]
[White "Anton, Christophe"]
[Black "Barthel, Jean"]
[Result "1-0"]
[TimeControl "1 h 30 min (+30s/coup)"]
[WhiteElo "1697"]
[BlackElo "1520"]

1. e4 {[%clk 01:30:58]} {[%emt 00:00:03]} e5 {[%clk 01:30:53]} {[%emt
00:00:08]} 2. Nf3 {[%clk 01:31:24]} {[%emt 00:00:03]} Nc6 {[%clk 01:31:14]}
{[%emt 00:00:09]} 3. d4 {[%clk 01:31:49]} {[%emt 00:00:04]} exd4 {[%clk
01:31:23]} {[%emt 00:00:22]} 4. Nxd4 {[%clk 01:32:11]} {[%emt 00:00:08]} Nf6
{[%clk 01:31:41]} {[%emt 00:00:11]} 5. Nc3 {[%clk 01:32:21]} {[%emt 00:00:22]}
Bb4 {[%clk 01:32:02]} {[%emt 00:00:08]} 6. Nxc6 {[%clk 01:31:25]} {[%emt
00:01:25]} bxc6 {[%clk 01:32:05]} {[%emt 00:00:27]} 7. Bd2 {[%clk 01:31:20]}
{[%emt 00:00:35]} d5 {[%clk 01:30:43]} {[%emt 00:01:53]} 8. exd5 {[%clk
01:23:25]} {[%emt 00:08:25]} cxd5 {[%clk 01:30:55]} {[%emt 00:00:18]} 9. Bb5+
{[%clk 01:22:32]} {[%emt 00:01:23]} Bd7 {[%clk 01:29:55]} {[%emt 00:01:31]} 10.
Qe2+ {[%clk 01:18:38]} {[%emt 00:04:23]} Be7 {[%clk 01:29:19]} {[%emt
00:01:06]} 11. O-O {[%emt 00:08:01]} O-O {[%clk 01:27:52]} {[%emt 00:00:02]} 12.
Bxd7 {[%clk 01:06:12]} {[%emt 00:07:20]} Qxd7 {[%clk 01:26:24]} {[%emt
00:01:58]} 13. Rad1 {[%clk 01:03:17]} {[%emt 00:03:25]} Qe6 {[%clk 01:24:26]}
{[%emt 00:02:28]} 14. Qxe6 {[%clk 01:01:09]} {[%emt 00:02:38]} fxe6 {[%clk
01:24:26]} {[%emt 00:00:30]} 15. Rfe1 {[%clk 01:01:14]} {[%emt 00:00:25]} Kf7
{[%clk 01:24:26]} {[%emt 00:00:27]} 16. b3 {[%clk 00:49:20]} {[%emt 00:12:28]}
c5 {[%clk 01:21:49]} {[%emt 00:03:07]} 17. Nb5 {[%clk 00:40:30]} {[%emt
00:09:20]} Rfc8 {[%clk 01:20:46]} {[%emt 00:01:33]} 18. Ba5 {[%clk 00:33:36]}
{[%emt 00:07:23]} Ne8 {[%clk 01:20:16]} {[%emt 00:01:01]} 19. Re2 {[%clk
00:26:56]} {[%emt 00:07:10]} a6 {[%clk 01:19:39]} {[%emt 00:01:07]} 20. Nc3
{[%clk 00:26:13]} {[%emt 00:01:13]} Rab8 {[%clk 01:18:32]} {[%emt 00:01:34]} 21.
Rde1 {[%clk 00:25:40]} {[%emt 00:01:06]} Rc6 {[%clk 01:18:09]} {[%emt
00:00:51]} 22. Nxd5 {[%clk 00:23:21]} {[%emt 00:02:51]} Rb5 {[%clk 01:17:13]}
{[%emt 00:01:25]} 23. Nxe7 {[%clk 00:22:30]} {[%emt 00:01:22]} Kxe7 {[%clk
01:17:21]} {[%emt 00:00:22]} 24. Bd2 {[%clk 00:18:26]} {[%emt 00:04:32]} c4
{[%clk 01:17:12]} {[%emt 00:00:41]} 25. bxc4 {[%clk 00:16:01]} {[%emt
00:02:55]} Rxc4 {[%clk 01:17:09]} 26. Rxe6+ {[%clk 00:16:25]} {[%emt 00:00:39]}
Kf7 {[%clk 01:17:13]} {[%emt 00:00:26]} 27. Rxe8 {[%clk 00:16:26]} {[%emt
00:00:29]} Rxc2 {[%clk 01:17:20]} {[%emt 00:00:23]} 28. R8e7+ {[%clk 00:16:35]}
{[%emt 00:00:21]} Kf8 {[%clk 01:17:26]} {[%emt 00:00:25]} 29. R7e2 {[%clk
00:16:41]} {[%emt 00:00:24]} Rbb2 {[%clk 01:17:10]} {[%emt 00:00:42]} 30. Bb4+
{[%clk 00:16:40]} {[%emt 00:00:34]} Kf7 {[%clk 01:16:35]} {[%emt 00:01:06]} 31.
Rxc2 {[%clk 00:16:41]} {[%emt 00:00:29]} Rxc2 {[%clk 01:16:52]} {[%emt
00:00:13]} 32. a3 {[%clk 00:16:49]} {[%emt 00:00:22]} Ra2 {[%clk 01:16:34]}
{[%emt 00:00:46]} 33. g3 {[%clk 00:16:52]} {[%emt 00:00:28]} a5 {[%clk
01:16:32]} {[%emt 00:00:33]} 34. Bc5 {[%clk 00:14:04]} {[%emt 00:03:17]} Rc2
{[%clk 01:16:29]} {[%emt 00:00:31]} 35. Bb6 {[%clk 00:14:11]} {[%emt 00:00:26]}
a4 {[%clk 01:15:17]} {[%emt 00:01:43]} 36. Re4 {[%clk 00:13:14]} {[%emt
00:01:25]} Rc6 {[%clk 01:15:23]} {[%emt 00:00:23]} 37. Be3 {[%clk 00:12:14]}
{[%emt 00:01:32]} Ra6 {[%clk 01:14:48]} {[%emt 00:01:05]} 38. Re5 {[%clk
00:12:03]} {[%emt 00:00:40]} Rc6 {[%clk 01:14:10]} {[%emt 00:01:09]} 39. Ra5
{[%clk 00:12:04]} {[%emt 00:00:29]} Rc4 {[%clk 01:14:10]} {[%emt 00:00:29]} 40.
Bc5 {[%clk 00:12:09]} {[%emt 00:00:26]} Rg4 {[%clk 01:12:46]} {[%emt 00:01:53]}
41. Bb4 {[%clk 00:12:26]} {[%emt 00:00:14]} Ke6 {[%clk 01:12:35]} {[%emt
00:00:41]} 42. Rxa4 {[%clk 00:12:45]} {[%emt 00:00:12]} Kd7 {[%clk 01:12:29]}
{[%emt 00:00:35]} 43. Ra7+ {[%clk 00:12:31]} {[%emt 00:00:45]} Kc6 {[%clk
01:12:36]} {[%emt 00:00:18]} 44. h3 {[%clk 00:12:52]} {[%emt 00:00:14]} Rg5
{[%clk 01:12:30]} {[%emt 00:00:35]} 45. Kg2 {[%clk 00:12:51]} {[%emt 00:00:32]}
h5 {[%clk 01:11:50]} {[%emt 00:01:10]} 46. Bf8 {[%clk 00:12:57]} {[%emt
00:00:24]} g6 {[%clk 01:10:42]} {[%emt 00:01:39]} 47. Bh6 {[%clk 00:12:14]}
{[%emt 00:01:13]} Rb5 {[%clk 01:10:09]} {[%emt 00:01:04]} 48. Ra6+ {[%clk
00:12:23]} {[%emt 00:00:20]} Rb6 {[%clk 01:10:19]} {[%emt 00:00:20]} 49. Rxb6+
{[%clk 00:12:46]} {[%emt 00:00:07]} Kxb6 {[%clk 01:10:44]} {[%emt 00:00:05]} 50.
Kf3 {[%clk 00:13:08]} {[%emt 00:00:08]} Kc6 {[%clk 01:11:02]} {[%emt 00:00:12]}
51. Kf4 {[%clk 00:13:31]} {[%emt 00:00:07]} Kb5 {[%clk 01:10:42]} {[%emt
00:00:50]} 52. Kg5 {[%clk 00:13:53]} {[%emt 00:00:08]} Ka4 {[%clk 01:10:56]}
{[%emt 00:00:16]} 53. Bf8 {[%clk 00:14:16]} {[%emt 00:00:07]} 1-0

[Event "6e festival d'échecs d'Allauch"]
[Site "Allauch, France"]
[Date "2024.08.27"]
[Round "2.6"]
[White "Kemmo, Jules"]
[Black "Dorvaux-Valdieu, Teiva"]
[Result "0-1"]
[TimeControl "1 h 30 min (+30s/coup)"]
[WhiteElo "1547"]
[BlackElo "1679"]

1. e4 {[%clk 01:30:58]} {[%emt 00:07:46]} c6 {[%clk 01:30:54]} {[%emt
00:00:08]} 2. d4 {[%clk 01:31:15]} {[%emt 00:00:11]} d5 {[%clk 01:31:18]}
{[%emt 00:00:06]} 3. e5 {[%clk 01:31:27]} {[%emt 00:00:20]} Bf5 {[%clk
01:31:42]} {[%emt 00:00:04]} 4. h4 {[%clk 01:31:40]} {[%emt 00:00:18]} h5
{[%clk 01:32:04]} {[%emt 00:00:07]} 5. Nc3 {[%clk 01:31:39]} {[%emt 00:00:30]}
Nd7 {[%clk 01:31:36]} {[%emt 00:00:59]} 6. Bd3 {[%clk 01:31:46]} {[%emt
00:00:22]} Bxd3 {[%clk 01:31:15]} {[%emt 00:00:51]} 7. Qxd3 {[%clk 01:31:54]}
{[%emt 00:00:22]} e6 {[%clk 01:30:42]} {[%emt 00:01:04]} 8. Bd2 {[%clk
01:31:00]} {[%emt 00:01:22]} c5 {[%clk 01:29:19]} {[%emt 00:01:54]} 9. Bg5
{[%clk 01:27:12]} {[%emt 00:04:18]} Qb6 {[%clk 01:25:33]} {[%emt 00:04:14]} 10.
O-O-O {[%clk 01:26:42]} {[%emt 00:01:02]} cxd4 {[%clk 01:24:12]} {[%emt
00:01:52]} 11. Qxd4 {[%clk 01:26:06]} {[%emt 00:01:05]} Qxd4 {[%clk 01:24:27]}
{[%emt 00:00:15]} 12. Rxd4 {[%clk 01:26:27]} {[%emt 00:00:09]} Nxe5 {[%clk
01:24:50]} {[%emt 00:00:07]} 13. Nb5 {[%clk 01:25:55]} {[%emt 00:01:01]} Kd7
{[%clk 01:23:42]} {[%emt 00:01:39]} 14. Ne2 {[%clk 01:20:21]} {[%emt 00:06:04]}
Bc5 {[%clk 01:20:52]} {[%emt 00:03:21]} 15. Rdd1 {[%clk 01:18:57]} {[%emt
00:01:54]} Bxf2 {[%clk 01:17:25]} {[%emt 00:03:57]} 16. Rhf1 {[%clk 01:14:16]}
{[%emt 00:05:10]} Bc5 {[%clk 01:14:50]} {[%emt 00:03:05]} 17. Bf4 {[%clk
01:12:10]} {[%emt 00:02:36]} Ng6 {[%clk 01:14:15]} {[%emt 00:01:04]} 18. Bd2
{[%clk 01:11:13]} {[%emt 00:01:28]} f6 {[%clk 01:12:17]} {[%emt 00:02:28]} 19.
g3 {[%clk 01:10:15]} {[%emt 00:01:29]} N8e7 {[%clk 01:10:31]} {[%emt 00:02:15]}
20. Nbd4 {[%clk 01:06:42]} {[%emt 00:04:02]} Nc6 {[%clk 01:05:26]} {[%emt
00:05:36]} 21. Bc3 {[%clk 01:04:21]} {[%emt 00:02:50]} Nxd4 {[%clk 01:03:28]}
{[%emt 00:02:29]} 22. Nxd4 {[%clk 01:03:35]} {[%emt 00:01:16]} Rae8 {[%clk
01:00:24]} {[%emt 00:03:33]} 23. Kb1 {[%clk 00:58:43]} {[%emt 00:05:24]} Rhf8
{[%clk 00:56:20]} {[%emt 00:04:34]} 24. b4 {[%clk 00:56:58]} {[%emt 00:02:15]}
Bd6 {[%clk 00:54:32]} {[%emt 00:02:18]} 25. a3 {[%clk 00:55:11]} {[%emt
00:02:18]} Ne5 {[%clk 00:47:51]} {[%emt 00:07:11]} 26. Nb5 {[%clk 00:49:36]}
{[%emt 00:06:04]} Rc8 {[%clk 00:46:08]} {[%emt 00:02:13]} 27. Bb2 {[%clk
00:47:58]} {[%emt 00:02:06]} a6 {[%clk 00:45:24]} {[%emt 00:01:16]} 28. Nxd6
{[%clk 00:45:15]} {[%emt 00:03:13]} Kxd6 {[%clk 00:45:37]} {[%emt 00:00:16]} 29.
Rde1 {[%clk 00:42:42]} {[%emt 00:03:04]} Nc4 {[%clk 00:45:11]} {[%emt
00:00:55]} 30. Bc1 {[%clk 00:41:07]} {[%emt 00:02:04]} e5 {[%clk 00:44:38]}
{[%emt 00:01:04]} 31. Rf5 {[%clk 00:39:17]} {[%emt 00:02:15]} g6 {[%clk
00:42:23]} {[%emt 00:02:51]} 32. Rf3 {[%clk 00:36:12]} {[%emt 00:03:32]} e4
{[%clk 00:40:32]} {[%emt 00:02:23]} 33. Rf2 {[%clk 00:33:24]} {[%emt 00:03:14]}
Ne5 {[%clk 00:39:35]} {[%emt 00:01:31]} 34. Rd1 {[%clk 00:27:27]} {[%emt
00:06:26]} Ng4 {[%clk 00:38:17]} {[%emt 00:01:49]} 35. Rfd2 {[%clk 00:26:16]}
{[%emt 00:01:39]} Ne3 {[%clk 00:36:35]} {[%emt 00:02:14]} 36. Re1 {[%clk
00:25:32]} {[%emt 00:01:12]} Nc4 {[%clk 00:36:36]} {[%emt 00:00:31]} 37. Rd4
{[%clk 00:25:25]} {[%emt 00:00:34]} Ke5 {[%clk 00:29:45]} {[%emt 00:07:22]} 38.
Red1 {[%clk 00:23:01]} {[%emt 00:02:57]} Rcd8 {[%clk 00:29:46]} {[%emt
00:00:28]} 39. Bf4+ {[%clk 00:19:45]} {[%emt 00:03:46]} Ke6 {[%clk 00:29:56]}
{[%emt 00:00:19]} 40. Ka2 {[%clk 00:18:58]} {[%emt 00:01:17]} Ne5 {[%clk
00:27:47]} {[%emt 00:02:40]} 41. Rc1 {[%clk 00:15:07]} {[%emt 00:04:20]} Nf3
{[%clk 00:26:31]} {[%emt 00:01:48]} 42. Rdd1 {[%clk 00:13:38]} {[%emt
00:01:58]} g5 {[%clk 00:26:03]} {[%emt 00:00:58]} 43. hxg5 {[%clk 00:12:28]}
{[%emt 00:01:40]} fxg5 {[%clk 00:26:01]} {[%emt 00:00:32]} 44. Be3 {[%clk
00:12:15]} {[%emt 00:00:43]} d4 {[%clk 00:26:12]} {[%emt 00:00:19]} 0-1